[Event "Early-Titled-Tuesday-Blitz-January-23-2024"]
[Site "Chess.com"]
[Date "2024.01.23"]
[Round "3"]
[White "KhazhatulyAlikhan"]
[Black "dianamirza"]
[Result "1-0"]
[WhiteElo "2345"]
[BlackElo "1990"]
[TimeControl "180+1"]
[EndTime "8:29:51 PST"]
[Termination "KhazhatulyAlikhan won by resignation"]

1. e4 {[%clk 0:03:00.9]} 1... c5 {[%clk 0:02:59.3]} 2. Nf3 {[%clk 0:02:32.3]}
2... e6 {[%clk 0:02:58.5]} 3. d4 {[%clk 0:02:31.9]} 3... cxd4 {[%clk 0:02:59.4]}
4. Nxd4 {[%clk 0:02:32.4]} 4... Nc6 {[%clk 0:03:00.3]} 5. Nc3 {[%clk 0:02:26.8]}
5... a6 {[%clk 0:03:00.3]} 6. Be3 {[%clk 0:02:26.3]} 6... Qc7 {[%clk 0:02:58.1]}
7. Bd3 {[%clk 0:02:26.7]} 7... Nf6 {[%clk 0:02:58.3]} 8. O-O {[%clk 0:02:26.3]}
8... Be7 {[%clk 0:02:58]} 9. Qe2 {[%clk 0:02:26]} 9... O-O {[%clk 0:02:58.4]}
10. Nb3 {[%clk 0:02:26.3]} 10... Nb4 {[%clk 0:02:58.2]} 11. Kh1 {[%clk
0:02:25.6]} 11... Nxd3 {[%clk 0:02:58.3]} 12. cxd3 {[%clk 0:02:26.5]} 12... b5
{[%clk 0:02:57.6]} 13. a3 {[%clk 0:02:25.1]} 13... Bb7 {[%clk 0:02:57.5]} 14. f4
{[%clk 0:02:25.4]} 14... Rac8 {[%clk 0:02:55.9]} 15. Rae1 {[%clk 0:02:25.8]}
15... b4 {[%clk 0:02:52.9]} 16. axb4 {[%clk 0:02:16.2]} 16... Bxb4 {[%clk
0:02:53.5]} 17. Bd4 {[%clk 0:02:12.6]} 17... Kh8 {[%clk 0:02:34.3]} 18. Rf3
{[%clk 0:02:00.6]} 18... Nh5 {[%clk 0:02:23.8]} 19. Qf2 {[%clk 0:01:49.7]} 19...
f5 {[%clk 0:02:06.6]} 20. Rh3 {[%clk 0:00:47]} 20... Nxf4 {[%clk 0:01:43.3]} 21.
Rg3 {[%clk 0:00:17.5]} 21... e5 {[%clk 0:01:36.6]} 22. Qxf4 {[%clk 0:00:05.3]}
22... exf4 {[%clk 0:01:26.5]} 23. Rxg7 {[%clk 0:00:04.9]} 23... Bxc3 {[%clk
0:01:18.8]} 24. bxc3 {[%clk 0:00:03]} 24... Qxc3 {[%clk 0:00:58.9]} 25. Rxd7+
{[%clk 0:00:03.7]} 25... Qxd4 {[%clk 0:00:58.1]} 26. Nxd4 {[%clk 0:00:04.3]}
26... fxe4 {[%clk 0:00:24.3]} 27. Rxb7 {[%clk 0:00:03.4]} 27... exd3 {[%clk
0:00:24.7]} 28. Rb2 {[%clk 0:00:03.4]} 28... Rc4 {[%clk 0:00:16]} 29. Nf3 {[%clk
0:00:03.5]} 29... Rc2 {[%clk 0:00:15.6]} 30. Rbb1 {[%clk 0:00:02.1]} 30... d2
{[%clk 0:00:15.2]} 31. Red1 {[%clk 0:00:02.8]} 31... Rd8 {[%clk 0:00:15.1]} 32.
Kg1 {[%clk 0:00:03.5]} 32... Kg7 {[%clk 0:00:13.1]} 33. Kf2 {[%clk 0:00:03.9]}
33... a5 {[%clk 0:00:12.4]} 34. Ke2 {[%clk 0:00:03.3]} 34... a4 {[%clk
0:00:12.8]} 35. Rb7+ {[%clk 0:00:01.7]} 35... Kf6 {[%clk 0:00:12.7]} 36. Rxd2
{[%clk 0:00:02]} 36... Re8+ {[%clk 0:00:12.8]} 37. Kd1 {[%clk 0:00:01.9]} 37...
Rc3 {[%clk 0:00:10.2]} 38. Ra7 {[%clk 0:00:02.1]} 38... a3 {[%clk 0:00:07.6]}
39. Rd6+ {[%clk 0:00:02.5]} 39... Kf5 {[%clk 0:00:06.3]} 40. Ra5+ {[%clk
0:00:03.2]} 40... Ke4 {[%clk 0:00:05.6]} 41. Rd4+ {[%clk 0:00:02.6]} 41... Ke3
{[%clk 0:00:04.8]} 42. Rd2 {[%clk 0:00:01.2]} 42... Rd3 {[%clk 0:00:04.7]} 43.
Rxd3+ {[%clk 0:00:01.1]} 43... Kxd3 {[%clk 0:00:05.3]} 44. Rxa3+ {[%clk
0:00:02]} 44... Kc4 {[%clk 0:00:05.7]} 45. Ra4+ {[%clk 0:00:02.6]} 45... Kd5
{[%clk 0:00:06.6]} 46. Rxf4 {[%clk 0:00:03.4]} 46... Kc6 {[%clk 0:00:07.4]} 47.
Rg4 {[%clk 0:00:04]} 47... Rd8+ {[%clk 0:00:08.3]} 48. Ke2 {[%clk 0:00:04]}
48... Re8+ {[%clk 0:00:09.1]} 49. Kf2 {[%clk 0:00:04.7]} 49... Rd8 {[%clk
0:00:10]} 50. Rh4 {[%clk 0:00:05.3]} 50... Rd1 {[%clk 0:00:10.4]} 51. Rxh7
{[%clk 0:00:05.3]} 51... Kd5 {[%clk 0:00:10.8]} 52. Rh6 {[%clk 0:00:05.8]} 52...
Ke4 {[%clk 0:00:10.8]} 53. Rh4+ {[%clk 0:00:06.1]} 53... Kf5 {[%clk 0:00:10.9]}
54. Rh5+ {[%clk 0:00:06.8]} 54... Kg6 {[%clk 0:00:11.4]} 55. Rg5+ {[%clk
0:00:07.3]} 55... Kh6 {[%clk 0:00:11.2]} 56. h4 {[%clk 0:00:07.9]} 56... Ra1
{[%clk 0:00:11]} 57. Kg3 {[%clk 0:00:07.2]} 57... Ra4 {[%clk 0:00:11.1]} 58. Kh3
{[%clk 0:00:07.3]} 58... Rb4 {[%clk 0:00:10.9]} 59. g4 {[%clk 0:00:06.6]} 59...
Rb3 {[%clk 0:00:11.3]} 60. Kg3 {[%clk 0:00:07.2]} 60... Rb1 {[%clk 0:00:10.4]}
61. Rf5 {[%clk 0:00:07.8]} 61... Rb2 {[%clk 0:00:08.8]} 62. g5+ {[%clk
0:00:07.6]} 62... Kg6 {[%clk 0:00:08.8]} 63. Rf6+ {[%clk 0:00:07.9]} 63... Kg7
{[%clk 0:00:09]} 64. h5 {[%clk 0:00:08.5]} 64... Rb5 {[%clk 0:00:08.8]} 65. h6+
{[%clk 0:00:08.1]} 65... Kh7 {[%clk 0:00:08.2]} 66. Kg4 {[%clk 0:00:08.8]} 66...
Rb4+ {[%clk 0:00:05.5]} 67. Kh5 {[%clk 0:00:09.4]} 67... Kh8 {[%clk 0:00:04.8]}
68. Nh4 {[%clk 0:00:09.9]} 68... Rb5 {[%clk 0:00:03.4]} 69. Ng6+ {[%clk
0:00:10.3]} 69... Kh7 {[%clk 0:00:03.5]} 70. Rf8 {[%clk 0:00:11.2]} 70... Rxg5+
{[%clk 0:00:02.4]} 71. Kh4 {[%clk 0:00:07.9]} 71... Rxg6 {[%clk 0:00:02.7]} 72.
Rf7+ {[%clk 0:00:05.3]} 72... Kxh6 {[%clk 0:00:02.8]} 73. Rf8 {[%clk 0:00:04.7]}
73... Rg7 {[%clk 0:00:03]} 74. Rf6+ {[%clk 0:00:03.3]} 74... Rg6 {[%clk
0:00:03.4]} 75. Rf8 {[%clk 0:00:03.7]} 75... Rg7 {[%clk 0:00:03.9]} 76. Ra8
{[%clk 0:00:04.4]} 76... Rh7 {[%clk 0:00:03.6]} 77. Ra6+ {[%clk 0:00:04]} 77...
Kg7+ {[%clk 0:00:04.2]} 78. Kg5 {[%clk 0:00:04.4]} 78... Rh1 {[%clk 0:00:02.4]}
79. Ra7+ {[%clk 0:00:05]} 79... Kf8 {[%clk 0:00:02.8]} 80. Ra8+ {[%clk
0:00:04.6]} 80... Ke7 {[%clk 0:00:02.7]} 81. Kf4 {[%clk 0:00:05.2]} 81... Kd6
{[%clk 0:00:03.1]} 82. Ke3 {[%clk 0:00:05.9]} 82... Rd1 {[%clk 0:00:03.5]} 83.
Rd8+ {[%clk 0:00:06.3]} 83... Kc5 {[%clk 0:00:03]} 84. Rxd1 {[%clk 0:00:06.8]}
84... Kb4 {[%clk 0:00:03]} 85. Rc1 {[%clk 0:00:06.6]} 85... Kb3 {[%clk
0:00:03.9]} 86. Kd3 {[%clk 0:00:07]} 86... Kb4 {[%clk 0:00:04.8]} 87. Rc4+
{[%clk 0:00:07.2]} 87... Kb5 {[%clk 0:00:05.7]} 88. Kd4 {[%clk 0:00:07.2]} 88...
Kb6 {[%clk 0:00:06.6]} 89. Rc5 {[%clk 0:00:07.8]} 1-0

[Event "Early-Titled-Tuesday-Blitz-January-23-2024"]
[Site "Chess.com"]
[Date "2024.01.23"]
[Round "3"]
[White "FARIZA2018"]
[Black "MetiForce"]
[Result "1-0"]
[WhiteElo "2538"]
[BlackElo "2846"]
[TimeControl "180+1"]
[EndTime "8:30:03 PST"]
[Termination "FARIZA2018 won by resignation"]

1. e4 {[%clk 0:03:00.9]} 1... c5 {[%clk 0:02:58.5]} 2. Nf3 {[%clk 0:03:00.4]}
2... d6 {[%clk 0:02:56.6]} 3. d4 {[%clk 0:02:59.7]} 3... cxd4 {[%clk 0:02:56.6]}
4. Nxd4 {[%clk 0:03:00.4]} 4... Nf6 {[%clk 0:02:57.5]} 5. Nc3 {[%clk 0:03:00.4]}
5... Nc6 {[%clk 0:02:58.2]} 6. Bg5 {[%clk 0:02:59.6]} 6... e6 {[%clk 0:02:57.7]}
7. Qd2 {[%clk 0:02:57.4]} 7... a6 {[%clk 0:02:55.2]} 8. O-O-O {[%clk 0:02:56.9]}
8... Bd7 {[%clk 0:02:55]} 9. Nxc6 {[%clk 0:02:52.4]} 9... Bxc6 {[%clk
0:02:55.9]} 10. f3 {[%clk 0:02:51.9]} 10... Qa5 {[%clk 0:02:54.5]} 11. Kb1
{[%clk 0:02:44.4]} 11... O-O-O {[%clk 0:02:52.9]} 12. Be3 {[%clk 0:02:29.7]}
12... d5 {[%clk 0:02:43]} 13. exd5 {[%clk 0:02:27.2]} 13... Nxd5 {[%clk
0:02:40.6]} 14. Nxd5 {[%clk 0:02:23.8]} 14... Qxd5 {[%clk 0:02:32]} 15. Qxd5
{[%clk 0:02:20.7]} 15... Bxd5 {[%clk 0:02:32.9]} 16. Bd3 {[%clk 0:02:17.1]}
16... Bd6 {[%clk 0:02:31.5]} 17. Rd2 {[%clk 0:02:06.3]} 17... h5 {[%clk
0:02:30.3]} 18. h3 {[%clk 0:02:04.5]} 18... Kc7 {[%clk 0:02:11]} 19. Rhd1 {[%clk
0:02:03.5]} 19... Bc6 {[%clk 0:02:09.9]} 20. Be2 {[%clk 0:01:43.9]} 20... Rd7
{[%clk 0:02:06.1]} 21. b3 {[%clk 0:01:38]} 21... Bg3 {[%clk 0:02:04.8]} 22. Bb6+
{[%clk 0:01:21.3]} 22... Kc8 {[%clk 0:01:45.9]} 23. Rxd7 {[%clk 0:01:14.2]}
23... Bxd7 {[%clk 0:01:46.8]} 24. a4 {[%clk 0:01:07.3]} 24... Bc6 {[%clk
0:01:41.5]} 25. a5 {[%clk 0:01:05.2]} 25... g5 {[%clk 0:01:40.1]} 26. b4 {[%clk
0:00:57.1]} 26... Bc7 {[%clk 0:01:38.5]} 27. Bxc7 {[%clk 0:00:55.9]} 27... Kxc7
{[%clk 0:01:39.4]} 28. c4 {[%clk 0:00:55.3]} 28... f5 {[%clk 0:01:14.4]} 29. Kb2
{[%clk 0:00:50.8]} 29... f4 {[%clk 0:01:12.1]} 30. Kc3 {[%clk 0:00:49.6]} 30...
g4 {[%clk 0:01:12.5]} 31. Re1 {[%clk 0:00:13.2]} 31... gxh3 {[%clk 0:01:10.4]}
32. gxh3 {[%clk 0:00:13.3]} 32... Rg8 {[%clk 0:01:10.8]} 33. Bd3 {[%clk
0:00:13.4]} 33... Rg3 {[%clk 0:01:09.8]} 34. Rxe6 {[%clk 0:00:12.5]} 34... Rxf3
{[%clk 0:01:10.4]} 35. Kd4 {[%clk 0:00:11.5]} 35... Rxh3 {[%clk 0:01:11]} 36.
Rf6 {[%clk 0:00:10.8]} 36... f3 {[%clk 0:01:10.7]} 37. b5 {[%clk 0:00:10.7]}
37... axb5 {[%clk 0:01:07.5]} 38. cxb5 {[%clk 0:00:10.8]} 38... Bd7 {[%clk
0:01:03.4]} 39. b6+ {[%clk 0:00:10.1]} 39... Kd8 {[%clk 0:01:03.6]} 40. Be4
{[%clk 0:00:09.6]} 40... f2 {[%clk 0:00:35.1]} 41. Rxf2 {[%clk 0:00:08.6]} 41...
Ra3 {[%clk 0:00:35.6]} 42. Bxb7 {[%clk 0:00:06.1]} 42... Rxa5 {[%clk 0:00:36.2]}
43. Rf8+ {[%clk 0:00:06.1]} 43... Ke7 {[%clk 0:00:36.2]} 44. Rh8 {[%clk
0:00:06.2]} 44... Rb5 {[%clk 0:00:34.1]} 45. Rh6 {[%clk 0:00:04.2]} 45... Be6
{[%clk 0:00:30.7]} 46. Be4 {[%clk 0:00:03.6]} 46... Rb4+ {[%clk 0:00:23.6]} 47.
Ke3 {[%clk 0:00:03.1]} 47... Rxb6 {[%clk 0:00:21.8]} 48. Rxh5 {[%clk 0:00:03.4]}
48... Kf6 {[%clk 0:00:22]} 49. Rh6+ {[%clk 0:00:03.8]} 49... Kg5 {[%clk
0:00:22.1]} 50. Rg6+ {[%clk 0:00:04.2]} 50... Kh5 {[%clk 0:00:22.6]} 51. Kf4
{[%clk 0:00:03.5]} 51... Ra6 {[%clk 0:00:18.9]} 52. Rf6 {[%clk 0:00:03.1]} 52...
Ra4 {[%clk 0:00:11.3]} 53. Rxe6 {[%clk 0:00:03]} 53... Rb4 {[%clk 0:00:11.1]}
54. Rf6 {[%clk 0:00:02.9]} 54... Ra4 {[%clk 0:00:10.8]} 55. Kf5 {[%clk
0:00:03.4]} 55... Ra5+ {[%clk 0:00:10.6]} 56. Kf4 {[%clk 0:00:03.8]} 56... Ra4
{[%clk 0:00:11.1]} 57. Rd6 {[%clk 0:00:04.2]} 57... Rb4 {[%clk 0:00:10]} 58. Rd7
{[%clk 0:00:04.6]} 58... Rb6 {[%clk 0:00:10.1]} 59. Rh7+ {[%clk 0:00:04.3]}
59... Rh6 {[%clk 0:00:10.2]} 60. Rg7 {[%clk 0:00:04.9]} 60... Rb6 {[%clk
0:00:09.4]} 61. Bf5 {[%clk 0:00:05.6]} 61... Rb4+ {[%clk 0:00:08.7]} 62. Be4
{[%clk 0:00:05.9]} 62... Rb6 {[%clk 0:00:08]} 63. Rg1 {[%clk 0:00:06.4]} 63...
Kh6 {[%clk 0:00:05.1]} 64. Ke5 {[%clk 0:00:05.8]} 64... Rb5+ {[%clk 0:00:03.5]}
65. Kf6 {[%clk 0:00:05.1]} 65... Rb6+ {[%clk 0:00:03.9]} 66. Kf5 {[%clk
0:00:04.9]} 66... Rb5+ {[%clk 0:00:04.2]} 67. Kf4 {[%clk 0:00:05.5]} 67... Rb6
{[%clk 0:00:04.7]} 68. Rg3 {[%clk 0:00:05.1]} 68... Ra6 {[%clk 0:00:03.7]} 69.
Rg8 {[%clk 0:00:05]} 69... Ra5 {[%clk 0:00:02.1]} 70. Rf8 {[%clk 0:00:04.1]}
70... Ra6 {[%clk 0:00:01.6]} 71. Rd8 {[%clk 0:00:04.7]} 71... Ra5 {[%clk
0:00:02.1]} 72. Bf5 {[%clk 0:00:04.4]} 72... Ra6 {[%clk 0:00:02.4]} 73. Rd7
{[%clk 0:00:05]} 73... Kh5 {[%clk 0:00:01.6]} 74. Rh7+ {[%clk 0:00:04.5]} 74...
Rh6 {[%clk 0:00:01.8]} 75. Re7 {[%clk 0:00:03.8]} 75... Rb6 {[%clk 0:00:02.4]}
76. Re4 {[%clk 0:00:03.8]} 76... Rb5 {[%clk 0:00:02.5]} 77. Re6 {[%clk
0:00:03.2]} 77... Rb6 {[%clk 0:00:03.1]} 78. Rxb6 {[%clk 0:00:02.3]} 1-0

[Event "Early-Titled-Tuesday-Blitz-January-23-2024"]
[Site "Chess.com"]
[Date "2024.01.23"]
[Round "3"]
[White "JoliyRoger"]
[Black "ArtemDyachuk"]
[Result "1-0"]
[WhiteElo "2466"]
[BlackElo "2620"]
[TimeControl "180+1"]
[EndTime "8:30:05 PST"]
[Termination "JoliyRoger won by checkmate"]

1. d4 {[%clk 0:03:00.9]} 1... Nf6 {[%clk 0:02:01.6]} 2. c4 {[%clk 0:03:00.3]}
2... e6 {[%clk 0:02:01.5]} 3. Nf3 {[%clk 0:02:59.4]} 3... d5 {[%clk 0:02:01.4]}
4. Nc3 {[%clk 0:02:59.4]} 4... Be7 {[%clk 0:01:59]} 5. e3 {[%clk 0:02:59.2]}
5... O-O {[%clk 0:01:58.6]} 6. b3 {[%clk 0:02:59.6]} 6... b6 {[%clk 0:01:58.9]}
7. Bb2 {[%clk 0:03:00]} 7... Bb7 {[%clk 0:01:59.4]} 8. Bd3 {[%clk 0:03:00.7]}
8... a6 {[%clk 0:01:55.6]} 9. O-O {[%clk 0:03:01.1]} 9... c5 {[%clk 0:01:54.3]}
10. cxd5 {[%clk 0:03:01.5]} 10... exd5 {[%clk 0:01:51.4]} 11. Qe2 {[%clk
0:03:01.7]} 11... Nc6 {[%clk 0:01:50.4]} 12. dxc5 {[%clk 0:02:57.5]} 12... bxc5
{[%clk 0:01:49.6]} 13. Rfd1 {[%clk 0:02:58.2]} 13... Re8 {[%clk 0:01:49.4]} 14.
Rac1 {[%clk 0:02:55.7]} 14... Bd6 {[%clk 0:01:45.2]} 15. Na4 {[%clk 0:02:52]}
15... Qe7 {[%clk 0:01:39.2]} 16. Nb6 {[%clk 0:02:38.2]} 16... Rab8 {[%clk
0:01:25.6]} 17. Bxf6 {[%clk 0:02:36.2]} 17... Qxf6 {[%clk 0:01:23.5]} 18. Nxd5
{[%clk 0:02:36.9]} 18... Qh6 {[%clk 0:01:23.6]} 19. Bc4 {[%clk 0:02:09.5]} 19...
Nd4 {[%clk 0:01:18.9]} 20. Qd3 {[%clk 0:01:25.3]} 20... Nxf3+ {[%clk 0:00:41.5]}
21. gxf3 {[%clk 0:01:26.2]} 21... Qxh2+ {[%clk 0:00:39.6]} 22. Kf1 {[%clk
0:01:26.6]} 22... Rbd8 {[%clk 0:00:28.7]} 23. Ke2 {[%clk 0:01:24.6]} 23... Bg3
{[%clk 0:00:27.8]} 24. Rf1 {[%clk 0:01:23.2]} 24... h5 {[%clk 0:00:23.6]} 25.
Qf5 {[%clk 0:00:55.4]} 25... Re5 {[%clk 0:00:21.3]} 26. Nf6+ {[%clk 0:00:39.6]}
26... gxf6 {[%clk 0:00:21]} 27. Qxf6 {[%clk 0:00:40.3]} 27... Bd5 {[%clk
0:00:13.4]} 28. Qxd8+ {[%clk 0:00:34.1]} 28... Kg7 {[%clk 0:00:13.1]} 29. Bxd5
{[%clk 0:00:26.3]} 29... Rf5 {[%clk 0:00:06.3]} 30. Be4 {[%clk 0:00:22.6]} 30...
Rf6 {[%clk 0:00:06.1]} 31. Rxc5 {[%clk 0:00:19.6]} 31... Bh4 {[%clk 0:00:04.8]}
32. Qd4 {[%clk 0:00:14.9]} 32... Qb8 {[%clk 0:00:03.9]} 33. Rg1+ {[%clk
0:00:12.8]} 33... Kf8 {[%clk 0:00:03.9]} 34. Rxh5 {[%clk 0:00:11.7]} 34... Qc7
{[%clk 0:00:02.3]} 35. Qc5+ {[%clk 0:00:08.9]} 35... Qxc5 {[%clk 0:00:01.5]} 36.
Rxc5 {[%clk 0:00:09.6]} 36... Rd6 {[%clk 0:00:02.4]} 37. Rh5 {[%clk 0:00:08.3]}
37... Bf6 {[%clk 0:00:02.2]} 38. Rd5 {[%clk 0:00:07.6]} 38... Rb6 {[%clk
0:00:01.7]} 39. Rgd1 {[%clk 0:00:08.2]} 39... a5 {[%clk 0:00:01.8]} 40. R1d2
{[%clk 0:00:08.2]} 40... Kg7 {[%clk 0:00:02.2]} 41. Rxa5 {[%clk 0:00:08]} 41...
Rb8 {[%clk 0:00:02.7]} 42. Rad5 {[%clk 0:00:08.2]} 42... Rc8 {[%clk 0:00:01.5]}
43. Rd7 {[%clk 0:00:08.6]} 43... Rc1 {[%clk 0:00:01.7]} 44. Bd5 {[%clk 0:00:09]}
44... Bc3 {[%clk 0:00:02.2]} 45. Rxf7+ {[%clk 0:00:09.1]} 45... Kh6 {[%clk
0:00:02.5]} 46. Rf6+ {[%clk 0:00:09]} 46... Bxf6 {[%clk 0:00:02]} 47. Bc4 {[%clk
0:00:08.2]} 47... Bc3 {[%clk 0:00:02.4]} 48. Rd6+ {[%clk 0:00:08.3]} 48... Kg5
{[%clk 0:00:02.5]} 49. f4+ {[%clk 0:00:08.7]} 49... Kg4 {[%clk 0:00:02.3]} 50.
Be6+ {[%clk 0:00:09.3]} 50... Kh4 {[%clk 0:00:01.6]} 51. a4 {[%clk 0:00:09.5]}
51... Re1+ {[%clk 0:00:01.6]} 52. Kf3 {[%clk 0:00:09.2]} 52... Bb4 {[%clk
0:00:02]} 53. Rd7 {[%clk 0:00:09.1]} 53... Kh5 {[%clk 0:00:01.8]} 54. Bf5 {[%clk
0:00:09.3]} 54... Bf8 {[%clk 0:00:01.4]} 55. Rh7+ {[%clk 0:00:09.8]} 55... Bh6
{[%clk 0:00:01.8]} 56. a5 {[%clk 0:00:10.3]} 56... Rg1 {[%clk 0:00:02]} 57. a6
{[%clk 0:00:09.6]} 57... Rg3+ {[%clk 0:00:02.3]} 58. Ke4 {[%clk 0:00:08.6]}
58... Rg8 {[%clk 0:00:02.4]} 59. Rxh6+ {[%clk 0:00:08.2]} 59... Kxh6 {[%clk
0:00:02.2]} 60. b4 {[%clk 0:00:09.1]} 60... Rb8 {[%clk 0:00:02.1]} 61. Kd5
{[%clk 0:00:03.6]} 61... Rxb4 {[%clk 0:00:02.4]} 62. Bc8 {[%clk 0:00:03.3]}
62... Rb8 {[%clk 0:00:01.9]} 63. Bb7 {[%clk 0:00:03.8]} 63... Rd8+ {[%clk
0:00:02.4]} 64. Ke6 {[%clk 0:00:03.3]} 64... Rd2 {[%clk 0:00:03.3]} 65. a7
{[%clk 0:00:03.3]} 65... Ra2 {[%clk 0:00:04.2]} 66. a8=Q {[%clk 0:00:03.9]}
66... Rb2 {[%clk 0:00:04.5]} 67. Kf5 {[%clk 0:00:04.1]} 67... Rb5+ {[%clk
0:00:03.8]} 68. Kg4 {[%clk 0:00:04.7]} 68... Rb6 {[%clk 0:00:02.4]} 69. Kf3
{[%clk 0:00:04.9]} 69... Rb4 {[%clk 0:00:02.2]} 70. Qh8+ {[%clk 0:00:05.4]}
70... Kg6 {[%clk 0:00:01.9]} 71. Qg8+ {[%clk 0:00:05.9]} 71... Kf6 {[%clk
0:00:02]} 72. Qf8+ {[%clk 0:00:06.5]} 72... Kg6 {[%clk 0:00:02.2]} 73. Qxb4
{[%clk 0:00:07.4]} 73... Kf5 {[%clk 0:00:02.7]} 74. Be4+ {[%clk 0:00:07.8]}
74... Ke6 {[%clk 0:00:02.6]} 75. f5+ {[%clk 0:00:07.3]} 75... Kd7 {[%clk
0:00:03.5]} 76. Bd3 {[%clk 0:00:07.4]} 76... Ke8 {[%clk 0:00:03.5]} 77. e4
{[%clk 0:00:08]} 77... Kf7 {[%clk 0:00:04.4]} 78. Qb7+ {[%clk 0:00:07.6]} 78...
Kf6 {[%clk 0:00:04]} 79. Qb6+ {[%clk 0:00:08.2]} 79... Kg7 {[%clk 0:00:03]} 80.
e5 {[%clk 0:00:08.6]} 80... Kh8 {[%clk 0:00:03.1]} 81. Ke4 {[%clk 0:00:09.2]}
81... Kg7 {[%clk 0:00:03.3]} 82. f4 {[%clk 0:00:09.8]} 82... Kh8 {[%clk
0:00:03.7]} 83. Qb7 {[%clk 0:00:09.5]} 83... Kg8 {[%clk 0:00:04]} 84. e6 {[%clk
0:00:09.4]} 84... Kh8 {[%clk 0:00:04.9]} 85. f6 {[%clk 0:00:09.9]} 85... Kg8
{[%clk 0:00:05]} 86. f5 {[%clk 0:00:09.8]} 86... Kh8 {[%clk 0:00:04.9]} 87. Ke5
{[%clk 0:00:10.3]} 87... Kg8 {[%clk 0:00:05]} 88. Qg7# {[%clk 0:00:10.9]} 1-0